[Event "44th Chess Olympiad Women 2022"]
[Site "Chennai"]
[Date "2022.08.03"]
[Round "6.61"]
[White "Raharimanana, Faratiana"]
[Black "Alazmi, Amani"]
[Result "1-0"]
[WhiteElo "1707"]
[BlackElo "1506"]
[Annotator "NA RC"]
[PlyCount "123"]
[EventDate "2022.??.??"]
[TimeControl "60"]

1. e4 {[%emt 0:00:05]} c5 {[%emt 0:00:04]} 2. Nf3 {[%emt 0:00:15]} d6 {[%emt 0:
00:00]} 3. d4 {[%emt 0:00:10]} cxd4 {[%emt 0:00:03]} 4. Nxd4 {[%emt 0:00:10]}
Nf6 {[%emt 0:00:04]} 5. Nc3 {[%emt 0:00:11]} a6 {[%emt 0:00:02]} 6. Be2 {
[%emt 0:00:39]} e5 {[%emt 0:00:04]} 7. Nb3 {[%emt 0:00:43]} Be6 {[%emt 0:00:04]
} 8. Bg5 {[%emt 0:00:37]} Be7 {[%emt 0:00:31]} 9. Bxf6 {[%emt 0:00:34]} Bxf6 {
[%emt 0:03:55]} 10. Nd5 {[%emt 0:00:14]} Bxd5 {[%emt 0:00:39]} 11. Qxd5 {
[%emt 0:00:36]} Nc6 {[%emt 0:00:33]} 12. c3 {[%emt 0:00:38]} Rc8 {[%emt 0:00:
00]} 13. Rd1 {[%emt 0:00:27]} Be7 {[%emt 0:00:14]} 14. O-O {[%emt 0:02:40]} O-O
{[%emt 0:00:05]} 15. Kh1 {[%emt 0:00:47]} Kh8 {[%emt 0:01:36]} 16. f4 {[%emt 0:
00:00]} Qb6 {[%emt 0:02:42]} 17. f5 {[%emt 0:17:05]} Rcd8 {[%emt 0:00:47]} 18.
Rf3 {[%emt 0:00:51]} Bf6 {[%emt 0:00:34]} 19. Rh3 {[%emt 0:01:55]} Qf2 {
[%emt 0:00:36]} 20. Qd3 {[%emt 0:01:03]} d5 {[%emt 0:03:14]} 21. exd5 {[%emt 0:
00:00]} Rxd5 {[%emt 0:03:06]} 22. Rf3 {[%emt 0:05:59]} Rxd3 {[%emt 0:02:38]}
23. Rxf2 {[%emt 0:00:21]} Rxd1+ {[%emt 0:01:17]} 24. Bxd1 {[%emt 0:00:06]} Rd8
{[%emt 0:02:00]} 25. Be2 {[%emt 0:02:29]} a5 {[%emt 0:07:48]} 26. a4 {[%emt 0:
00:00]} b6 {[%emt 0:01:18]} 27. g3 {[%emt 0:00:26]} Ne7 {[%emt 0:14:02]} 28.
Bc4 {[%emt 0:02:18]} Kg8 {[%emt 0:00:47]} 29. Kg2 {[%emt 0:00:22]} Nd5 {
[%emt 0:06:26]} 30. Bxd5 {[%emt 0:00:28]} Rxd5 {[%emt 0:00:09]} 31. Rd2 {
[%emt 0:00:08]} Rxd2+ {[%emt 0:00:28]} 32. Nxd2 {[%emt 0:00:16]} Bd8 {[%emt 0:
00:00]} 33. Kf3 {[%emt 0:01:05]} f6 {[%emt 0:00:31]} 34. Ke4 {[%emt 0:00:18]}
Kf7 {[%emt 0:00:23]} 35. Nc4 {[%emt 0:01:37]} Ke7 {[%emt 0:00:39]} 36. Kd5 {
[%emt 0:00:40]} Kd7 {[%emt 0:00:31]} 37. Nd2 {[%emt 0:00:55]} Bc7 {[%emt 0:00:
00]} 38. Ne4 {[%emt 0:00:00]} Bb8 {[%emt 0:02:02]} 39. g4 {[%emt 0:00:00]} h6 {
[%emt 0:04:28]} 40. b4 {[%emt 0:00:25]} axb4 {[%emt 0:01:18]} 41. cxb4 {
[%emt 0:30:55]} Bc7 {[%emt 0:30:55]} 42. h4 {[%emt 0:04:29]} Bd8 {[%emt 0:00:
00]} 43. Kc4 {[%emt 0:12:28]} Kc7 {[%emt 0:01:05]} 44. Kb5 {[%emt 0:11:15]} Kb7
{[%emt 0:05:59]} 45. Nd6+ {[%emt 0:10:13]} Kc7 {[%emt 0:02:24]} 46. Ne8+ {
[%emt 0:00:14]} Kd7 {[%emt 0:00:27]} 47. Nxg7 {[%emt 0:00:15]} e4 {[%emt 0:00:
00]} 48. Kc4 {[%emt 0:00:20]} e3 {[%emt 0:02:46]} 49. Kd3 {[%emt 0:00:23]} Be7
{[%emt 0:00:05]} 50. b5 {[%emt 0:00:36]} Bc5 {[%emt 0:00:11]} 51. Ne6 {[%emt 0:
00:00]} Kd6 {[%emt 0:02:09]} 52. Nxc5 {[%emt 0:00:34]} Kxc5 {[%emt 0:00:09]}
53. Kxe3 {[%emt 0:00:07]} Kb4 {[%emt 0:00:02]} 54. Kd4 {[%emt 0:01:20]} Kxa4 {
[%emt 0:00:52]} 55. Kc4 {[%emt 0:00:01]} Ka5 {[%emt 0:00:34]} 56. g5 {[%emt 0:
00:00]} h5 {[%emt 0:05:56]} 57. g6 {[%emt 0:01:25]} Ka4 {[%emt 0:00:11]} 58. g7
{[%emt 0:00:06]} Ka3 {[%emt 0:00:08]} 59. g8=Q {[%emt 0:00:11]} Kb2 {[%emt 0:
00:00]} 60. Qg2+ {[%emt 0:00:48]} Ka3 {[%emt 0:00:22]} 61. Qf2 {[%emt 0:01:22]}
Ka4 {[%emt 0:00:10]} 62. Qa2# {[%emt 0:00:10]} 1-0

[Event "44th Chess Olympiad Women 2022"]
[Site "Chennai"]
[Date "2022.08.03"]
[Round "6.61"]
[White "Razafindratina, Mariam Clarisse"]
[Black "Alhasan, Zainah"]
[Result "1-0"]
[WhiteElo "1318"]
[BlackElo "1095"]
[Annotator "NA RC"]
[PlyCount "133"]
[EventDate "2022.??.??"]
[TimeControl "60"]

1. e4 {[%emt 0:00:02]} e5 {[%emt 0:00:03]} 2. Nf3 {[%emt 0:00:06]} Nc6 {
[%emt 0:00:05]} 3. Bb5 {[%emt 0:00:23]} Nf6 {[%emt 0:00:28]} 4. d3 {[%emt 0:00:
00]} a6 {[%emt 0:00:28]} 5. Bxc6 {[%emt 0:00:16]} dxc6 {[%emt 0:00:32]} 6. Bg5
{[%emt 0:00:41]} Bd6 {[%emt 0:00:25]} 7. O-O {[%emt 0:00:19]} O-O {[%emt 0:00:
00]} 8. Nbd2 {[%emt 0:00:27]} Be6 {[%emt 0:01:07]} 9. h3 {[%emt 0:00:50]} h6 {
[%emt 0:01:44]} 10. Bh4 {[%emt 0:00:14]} Re8 {[%emt 0:02:08]} 11. Nh2 {[%emt 0:
00:00]} Be7 {[%emt 0:01:11]} 12. Ndf3 {[%emt 0:01:40]} Nd7 {[%emt 0:01:26]} 13.
Bg3 {[%emt 0:01:53]} f6 {[%emt 0:01:09]} 14. d4 {[%emt 0:00:24]} exd4 {[%emt 0:
00:00]} 15. Nxd4 {[%emt 0:00:25]} Bc4 {[%emt 0:01:25]} 16. Re1 {[%emt 0:00:09]}
Bd6 {[%emt 0:01:03]} 17. Qg4 {[%emt 0:00:52]} Bxg3 {[%emt 0:03:58]} 18. Qxg3 {
[%emt 0:00:17]} Ne5 {[%emt 0:00:54]} 19. Nf5 {[%emt 0:00:29]} Qd7 {[%emt 0:00:
00]} 20. Rad1 {[%emt 0:00:11]} Bd5 {[%emt 0:02:15]} 21. Ng4 {[%emt 0:02:43]}
Kh7 {[%emt 0:01:57]} 22. Nxe5 {[%emt 0:01:34]} Rxe5 {[%emt 0:01:16]} 23. c4 {
[%emt 0:01:34]} g6 {[%emt 0:02:14]} 24. f4 {[%emt 0:00:10]} Ree8 {[%emt 0:00:
00]} 25. Nh4 {[%emt 0:01:51]} g5 {[%emt 0:02:30]} 26. fxg5 {[%emt 0:01:01]}
fxg5 {[%emt 0:02:18]} 27. Nf5 {[%emt 0:00:50]} Rxe4 {[%emt 0:01:39]} 28. cxd5 {
[%emt 0:01:50]} Rxe1+ {[%emt 0:00:28]} 29. Rxe1 {[%emt 0:00:20]} Qxf5 {[%emt 0:
00:00]} 30. Qxc7+ {[%emt 0:00:22]} Kg6 {[%emt 0:00:43]} 31. g4 {[%emt 0:01:08]}
Qxd5 {[%emt 0:00:59]} 32. Qe7 {[%emt 0:01:04]} Qd4+ {[%emt 0:00:59]} 33. Kh2 {
[%emt 0:00:33]} Qf4+ {[%emt 0:00:22]} 34. Kg2 {[%emt 0:00:17]} Qd2+ {[%emt 0:
00:00]} 35. Re2 {[%emt 0:00:12]} Qd5+ {[%emt 0:00:16]} 36. Kh2 {[%emt 0:01:56]}
Qf7 {[%emt 0:01:07]} 37. Qd6+ {[%emt 0:01:42]} Kg7 {[%emt 0:01:55]} 38. Re7 {
[%emt 0:00:07]} Qxe7 {[%emt 0:00:40]} 39. Qxe7+ {[%emt 0:00:12]} Kg8 {[%emt 0:
00:00]} 40. Qxb7 {[%emt 0:00:16]} Rf8 {[%emt 0:00:11]} 41. Qb6 {[%emt 0:31:35]}
Re8 {[%emt 0:30:15]} 42. Qxa6 {[%emt 0:00:24]} Rf8 {[%emt 0:00:15]} 43. Qc4+ {
[%emt 0:00:11]} Kh7 {[%emt 0:00:12]} 44. a4 {[%emt 0:01:10]} Rf2+ {[%emt 0:00:
00]} 45. Kg3 {[%emt 0:00:10]} Rxb2 {[%emt 0:00:13]} 46. Qe4+ {[%emt 0:00:19]}
Kg8 {[%emt 0:00:12]} 47. Qxc6 {[%emt 0:00:22]} Rb3+ {[%emt 0:00:14]} 48. Kg2 {
[%emt 0:01:03]} Rb2+ {[%emt 0:00:09]} 49. Kf1 {[%emt 0:00:04]} Rb1+ {[%emt 0:
00:00]} 50. Ke2 {[%emt 0:00:06]} Rb2+ {[%emt 0:00:07]} 51. Kd1 {[%emt 0:00:17]}
Rb1+ {[%emt 0:00:15]} 52. Kc2 {[%emt 0:00:13]} Ra1 {[%emt 0:00:09]} 53. Kb2 {
[%emt 0:00:15]} Rg1 {[%emt 0:00:11]} 54. Qxh6 {[%emt 0:00:25]} Rg2+ {[%emt 0:
00:00]} 55. Kb3 {[%emt 0:00:06]} Rg3+ {[%emt 0:00:18]} 56. Kb4 {[%emt 0:00:06]}
Rf3 {[%emt 0:00:27]} 57. Qxg5+ {[%emt 0:00:11]} Kf8 {[%emt 0:00:16]} 58. h4 {
[%emt 0:01:48]} Rd3 {[%emt 0:00:16]} 59. h5 {[%emt 0:00:28]} Rd4+ {[%emt 0:00:
00]} 60. Ka5 {[%emt 0:00:05]} Rd7 {[%emt 0:00:29]} 61. Qc5+ {[%emt 0:00:45]}
Kg7 {[%emt 0:00:28]} 62. g5 {[%emt 0:00:13]} Rf7 {[%emt 0:00:49]} 63. Qe5+ {
[%emt 0:00:38]} Kf8 {[%emt 0:00:18]} 64. g6 {[%emt 0:00:22]} Ra7+ {[%emt 0:00:
00]} 65. Kb4 {[%emt 0:00:11]} Rb7+ {[%emt 0:00:08]} 66. Ka3 {[%emt 0:00:18]}
Re7 {[%emt 0:00:13]} 67. Qh8# {[%emt 0:02:07]} 1-0

[Event "44th Chess Olympiad Women 2022"]
[Site "Chennai"]
[Date "2022.08.03"]
[Round "6.62"]
[White "Magne Kouokam Sylviane"]
[Black "Tilman, Zulmira Americo"]
[Result "1/2-1/2"]
[WhiteElo "1317"]
[BlackElo "1255"]
[Annotator "NA RC"]
[PlyCount "106"]
[EventDate "2022.??.??"]
[TimeControl "60"]

1. d4 {[%emt 0:00:02]} d6 {[%emt 0:00:21]} 2. c4 {[%emt 0:00:18]} Nf6 {[%emt 0:
00:00]} 3. Nf3 {[%emt 0:00:08]} c6 {[%emt 0:00:34]} 4. Nc3 {[%emt 0:00:12]} Qa5
{[%emt 0:00:26]} 5. Bd2 {[%emt 0:00:45]} Qc7 {[%emt 0:00:27]} 6. e4 {[%emt 0:
00:00]} e5 {[%emt 0:00:36]} 7. dxe5 {[%emt 0:00:32]} dxe5 {[%emt 0:00:24]} 8.
Be2 {[%emt 0:00:18]} Be7 {[%emt 0:00:33]} 9. O-O {[%emt 0:00:12]} O-O {[%emt 0:
00:00]} 10. a3 {[%emt 0:00:10]} h6 {[%emt 0:00:22]} 11. Re1 {[%emt 0:00:38]}
Be6 {[%emt 0:01:08]} 12. Qc2 {[%emt 0:00:14]} Nbd7 {[%emt 0:00:37]} 13. b4 {
[%emt 0:00:15]} a6 {[%emt 0:01:16]} 14. Rad1 {[%emt 0:00:10]} Nb6 {[%emt 0:00:
00]} 15. c5 {[%emt 0:00:50]} Nc4 {[%emt 0:01:04]} 16. Bxc4 {[%emt 0:00:28]}
Bxc4 {[%emt 0:00:21]} 17. Na4 {[%emt 0:00:18]} Be6 {[%emt 0:01:19]} 18. Nb6 {
[%emt 0:00:13]} Rad8 {[%emt 0:01:48]} 19. Bc3 {[%emt 0:00:21]} Rxd1 {[%emt 0:
00:00]} 20. Rxd1 {[%emt 0:00:12]} Nd7 {[%emt 0:03:32]} 21. Nxd7 {[%emt 0:00:28]
} Bxd7 {[%emt 0:01:51]} 22. Bxe5 {[%emt 0:00:22]} Qc8 {[%emt 0:02:31]} 23. Qc3
{[%emt 0:02:01]} f6 {[%emt 0:01:46]} 24. Bd6 {[%emt 0:00:33]} Bxd6 {[%emt 0:00:
00]} 25. Rxd6 {[%emt 0:00:11]} Qe8 {[%emt 0:02:27]} 26. Qd3 {[%emt 0:00:42]}
Bc8 {[%emt 0:05:32]} 27. Nh4 {[%emt 0:00:52]} Qf7 {[%emt 0:06:38]} 28. Nf5 {
[%emt 0:02:09]} Bxf5 {[%emt 0:05:26]} 29. exf5 {[%emt 0:00:08]} Re8 {[%emt 0:
00:00]} 30. h3 {[%emt 0:00:27]} Qc7 {[%emt 0:05:50]} 31. g3 {[%emt 0:00:33]}
Qe7 {[%emt 0:03:35]} 32. Rd7 {[%emt 0:00:53]} Qe1+ {[%emt 0:01:06]} 33. Kg2 {
[%emt 0:00:11]} Kh7 {[%emt 0:01:31]} 34. Rxb7 {[%emt 0:00:41]} Re2 {[%emt 0:00:
00]} 35. Qf3 {[%emt 0:01:58]} Ra2 {[%emt 0:01:50]} 36. Rc7 {[%emt 0:00:25]} Ra1
{[%emt 0:00:05]} 37. Rxg7+ {[%emt 0:01:26]} Kxg7 {[%emt 0:00:10]} 38. Qg4+ {
[%emt 0:00:28]} Kf8 {[%emt 0:00:56]} 39. Kf3 {[%emt 0:01:09]} Rxa3+ {[%emt 0:
00:00]} 40. Kg2 {[%emt 0:00:41]} Ra2 {[%emt 0:00:31]} 41. Qd4 {[%emt 0:30:36]}
Rd2 {[%emt 0:33:11]} 42. Qxf6+ {[%emt 0:00:28]} Ke8 {[%emt 0:00:12]} 43. Qxc6+
{[%emt 0:00:16]} Rd7 {[%emt 0:07:37]} 44. Qg6+ {[%emt 0:01:01]} Rf7 {[%emt 0:
00:00]} 45. Qc6+ {[%emt 0:01:09]} Kf8 {[%emt 0:00:00]} 46. Qxh6+ {[%emt 0:00:
00]} Ke8 {[%emt 0:00:32]} 47. Qc6+ {[%emt 0:00:22]} Kd8 {[%emt 0:01:25]} 48.
Qa8+ {[%emt 0:02:33]} Ke7 {[%emt 0:01:20]} 49. Qb7+ {[%emt 0:00:40]} Kf6 {
[%emt 0:00:45]} 50. Qxa6+ {[%emt 0:00:51]} Kg7 {[%emt 0:00:14]} 51. Qg6+ {
[%emt 0:00:19]} Kf8 {[%emt 0:00:11]} 52. Qh6+ {[%emt 0:00:33]} Rg7 {[%emt 0:00:
00]} 53. Qf6+ {[%emt 0:00:56]} Rf7 {[%emt 0:00:06]} 1/2-1/2

[Event "44th Chess Olympiad Women 2022"]
[Site "Chennai"]
[Date "2022.08.03"]
[Round "6.62"]
[White "da Silva, Sonizia A.Tilman"]
[Black "Tchouateu Tankeu Stephanie"]
[Result "1-0"]
[WhiteElo "1507"]
[BlackElo "1280"]
[Annotator "NA RC"]
[PlyCount "133"]
[EventDate "2022.??.??"]
[TimeControl "60"]

1. d4 {[%emt 0:00:05]} d5 {[%emt 0:00:07]} 2. c4 {[%emt 0:00:07]} e6 {[%emt 0:
00:00]} 3. Nc3 {[%emt 0:00:17]} Nf6 {[%emt 0:00:08]} 4. Bg5 {[%emt 0:00:18]}
Nbd7 {[%emt 0:00:20]} 5. cxd5 {[%emt 0:00:39]} exd5 {[%emt 0:00:21]} 6. Nxd5 {
[%emt 0:01:01]} Nxd5 {[%emt 0:00:15]} 7. Bxd8 {[%emt 0:00:08]} Bb4+ {[%emt 0:
00:00]} 8. Qd2 {[%emt 0:01:17]} Kxd8 {[%emt 0:00:23]} 9. Nf3 {[%emt 0:01:14]}
Bxd2+ {[%emt 0:00:13]} 10. Nxd2 {[%emt 0:00:09]} Re8 {[%emt 0:00:26]} 11. e3 {
[%emt 0:00:22]} N7f6 {[%emt 0:00:27]} 12. Bc4 {[%emt 0:00:47]} Be6 {[%emt 0:00:
00]} 13. O-O {[%emt 0:01:02]} Ke7 {[%emt 0:01:29]} 14. Nf3 {[%emt 0:01:47]} Kf8
{[%emt 0:01:54]} 15. Ng5 {[%emt 0:01:17]} Nb6 {[%emt 0:07:48]} 16. Nxe6+ {
[%emt 0:05:08]} fxe6 {[%emt 0:00:51]} 17. Bd3 {[%emt 0:01:18]} Rad8 {[%emt 0:
00:00]} 18. b4 {[%emt 0:03:05]} e5 {[%emt 0:02:20]} 19. dxe5 {[%emt 0:05:51]}
Rxe5 {[%emt 0:00:52]} 20. Bc2 {[%emt 0:03:14]} a6 {[%emt 0:05:25]} 21. Rac1 {
[%emt 0:03:33]} Nbd5 {[%emt 0:00:59]} 22. Bb3 {[%emt 0:03:09]} Ne8 {[%emt 0:00:
00]} 23. Rfd1 {[%emt 0:02:34]} Rd6 {[%emt 0:00:35]} 24. f4 {[%emt 0:04:36]} Rh5
{[%emt 0:19:11]} 25. g4 {[%emt 0:01:26]} Rh4 {[%emt 0:00:39]} 26. Rxd5 {
[%emt 0:02:12]} Rxg4+ {[%emt 0:02:35]} 27. Kf2 {[%emt 0:01:35]} c6 {[%emt 0:00:
00]} 28. Rxd6 {[%emt 0:03:02]} Nxd6 {[%emt 0:00:14]} 29. Rd1 {[%emt 0:01:28]}
Rg6 {[%emt 0:04:06]} 30. Kf3 {[%emt 0:02:13]} Rf6 {[%emt 0:03:56]} 31. h4 {
[%emt 0:01:45]} Ke7 {[%emt 0:05:34]} 32. e4 {[%emt 0:00:57]} Rf8 {[%emt 0:00:
00]} 33. e5 {[%emt 0:00:53]} Nf5 {[%emt 0:01:06]} 34. h5 {[%emt 0:02:52]} Rd8 {
[%emt 0:00:12]} 35. Rg1 {[%emt 0:02:35]} Nd4+ {[%emt 0:01:32]} 36. Ke4 {
[%emt 0:00:42]} Nxb3 {[%emt 0:00:54]} 37. axb3 {[%emt 0:00:12]} Kf7 {[%emt 0:
00:00]} 38. Kf5 {[%emt 0:01:24]} Re8 {[%emt 0:01:50]} 39. Rd1 {[%emt 0:00:56]}
g6+ {[%emt 0:02:57]} 40. hxg6+ {[%emt 0:00:26]} hxg6+ {[%emt 0:00:09]} 41. Kg5
{[%emt 0:30:47]} Re7 {[%emt 0:31:14]} 42. Rd6 {[%emt 0:00:40]} Re6 {[%emt 0:00:
00]} 43. Rd7+ {[%emt 0:01:17]} Re7 {[%emt 0:01:41]} 44. Rxe7+ {[%emt 0:00:11]}
Kxe7 {[%emt 0:00:10]} 45. Kxg6 {[%emt 0:00:01]} b5 {[%emt 0:01:41]} 46. f5 {
[%emt 0:00:16]} a5 {[%emt 0:00:42]} 47. f6+ {[%emt 0:00:07]} Ke6 {[%emt 0:00:
00]} 48. f7 {[%emt 0:00:18]} a4 {[%emt 0:00:46]} 49. f8=Q {[%emt 0:00:28]} Kxe5
{[%emt 0:00:17]} 50. bxa4 {[%emt 0:00:50]} bxa4 {[%emt 0:00:10]} 51. Qc5+ {
[%emt 0:00:16]} Kf4 {[%emt 0:00:26]} 52. Qd4+ {[%emt 0:00:24]} Kf3 {[%emt 0:00:
00]} 53. Qd1+ {[%emt 0:00:18]} Ke4 {[%emt 0:00:44]} 54. Qxa4 {[%emt 0:00:17]}
Kd5 {[%emt 0:00:43]} 55. Kf5 {[%emt 0:00:17]} c5 {[%emt 0:00:21]} 56. Qb3+ {
[%emt 0:00:27]} Kd4 {[%emt 0:00:22]} 57. bxc5 {[%emt 0:00:32]} Kxc5 {[%emt 0:
00:00]} 58. Qc3+ {[%emt 0:00:23]} Kd6 {[%emt 0:00:53]} 59. Kf6 {[%emt 0:01:02]}
Kd5 {[%emt 0:00:18]} 60. Qd3+ {[%emt 0:00:20]} Kc5 {[%emt 0:00:15]} 61. Ke5 {
[%emt 0:00:32]} Kb4 {[%emt 0:01:00]} 62. Kd5 {[%emt 0:00:23]} Ka5 {[%emt 0:00:
00]} 63. Kc5 {[%emt 0:00:32]} Ka4 {[%emt 0:00:22]} 64. Qb5+ {[%emt 0:02:34]}
Ka3 {[%emt 0:00:11]} 65. Kc4 {[%emt 0:00:13]} Ka2 {[%emt 0:00:13]} 66. Kc3 {
[%emt 0:00:08]} Ka3 {[%emt 0:00:16]} 67. Qb3# {[%emt 0:00:05]} 1-0

[Event "44th Chess Olympiad Women 2022"]
[Site "Chennai"]
[Date "2022.08.03"]
[Round "6.63"]
[White "Saraci, Ndriqona"]
[Black "Roberts, Tallulah"]
[Result "1/2-1/2"]
[WhiteElo "1425"]
[BlackElo "1536"]
[Annotator "NA RC"]
[PlyCount "62"]
[EventDate "2022.??.??"]
[TimeControl "60"]

1. e4 {[%emt 0:00:09]} e6 {[%emt 0:00:01]} 2. d4 {[%emt 0:01:03]} d5 {[%emt 0:
00:00]} 3. exd5 {[%emt 0:00:37]} exd5 {[%emt 0:00:02]} 4. Nf3 {[%emt 0:02:06]}
Bd6 {[%emt 0:00:08]} 5. Bd3 {[%emt 0:01:27]} Ne7 {[%emt 0:00:15]} 6. O-O {
[%emt 0:02:39]} O-O {[%emt 0:00:25]} 7. Nc3 {[%emt 0:03:40]} c6 {[%emt 0:01:20]
} 8. Ne2 {[%emt 0:07:01]} Bf5 {[%emt 0:00:38]} 9. Bxf5 {[%emt 0:08:05]} Nxf5 {
[%emt 0:01:54]} 10. Bf4 {[%emt 0:03:03]} Re8 {[%emt 0:02:30]} 11. Bxd6 {
[%emt 0:03:21]} Qxd6 {[%emt 0:01:28]} 12. Ng3 {[%emt 0:04:08]} Nxg3 {[%emt 0:
00:00]} 13. hxg3 {[%emt 0:02:34]} Nd7 {[%emt 0:01:02]} 14. Re1 {[%emt 0:03:35]}
Nf6 {[%emt 0:01:48]} 15. Rxe8+ {[%emt 0:07:00]} Rxe8 {[%emt 0:00:02]} 16. Ne5 {
[%emt 0:10:34]} Ne4 {[%emt 0:05:39]} 17. Qf3 {[%emt 0:02:55]} f6 {[%emt 0:00:
00]} 18. Nd3 {[%emt 0:03:09]} Ng5 {[%emt 0:06:25]} 19. Qf4 {[%emt 0:04:33]}
Qxf4 {[%emt 0:18:32]} 20. Nxf4 {[%emt 0:01:13]} Kf7 {[%emt 0:04:01]} 21. c3 {
[%emt 0:01:39]} Re7 {[%emt 0:01:57]} 22. f3 {[%emt 0:02:47]} a5 {[%emt 0:06:32]
} 23. a4 {[%emt 0:01:59]} h6 {[%emt 0:02:28]} 24. Kf2 {[%emt 0:00:20]} Ne6 {
[%emt 0:01:22]} 25. Nd3 {[%emt 0:01:10]} b6 {[%emt 0:03:10]} 26. b3 {[%emt 0:
00:00]} g6 {[%emt 0:03:18]} 27. Rh1 {[%emt 0:01:28]} Kg7 {[%emt 0:01:08]} 28.
Re1 {[%emt 0:01:09]} Kf7 {[%emt 0:00:51]} 29. Rh1 {[%emt 0:00:23]} Kg7 {
[%emt 0:00:03]} 30. Re1 {[%emt 0:00:10]} Kf7 {[%emt 0:00:01]} 31. Rh1 {[%emt 0:
00:00]} Kg7 {[%emt 0:00:01]} 1/2-1/2

[Event "44th Chess Olympiad Women 2022"]
[Site "Chennai"]
[Date "2022.08.03"]
[Round "6.65"]
[White "Johnson, Daijah"]
[Black "Rayan Sedee Mohamed"]
[Result "1-0"]
[WhiteElo "1480"]
[BlackElo "1168"]
[Annotator "NA RC"]
[PlyCount "89"]
[EventDate "2022.??.??"]
[TimeControl "60"]

1. d4 {[%emt 0:00:03]} d5 {[%emt 0:00:06]} 2. c4 {[%emt 0:00:11]} c6 {[%emt 0:
00:00]} 3. Nc3 {[%emt 0:00:26]} Nf6 {[%emt 0:00:21]} 4. Bg5 {[%emt 0:01:58]} e6
{[%emt 0:01:03]} 5. Nf3 {[%emt 0:00:41]} g6 {[%emt 0:05:40]} 6. e4 {[%emt 0:00:
00]} dxe4 {[%emt 0:02:39]} 7. Nxe4 {[%emt 0:00:37]} Bg7 {[%emt 0:00:37]} 8.
Bxf6 {[%emt 0:05:20]} Bxf6 {[%emt 0:00:30]} 9. Nxf6+ {[%emt 0:02:33]} Qxf6 {
[%emt 0:00:27]} 10. Ne5 {[%emt 0:03:21]} Nd7 {[%emt 0:07:53]} 11. Qf3 {[%emt 0:
00:00]} Qxf3 {[%emt 0:03:11]} 12. Nxf3 {[%emt 0:00:08]} O-O {[%emt 0:03:00]}
13. Be2 {[%emt 0:02:35]} c5 {[%emt 0:04:32]} 14. O-O {[%emt 0:03:31]} b6 {
[%emt 0:04:18]} 15. Rad1 {[%emt 0:08:35]} cxd4 {[%emt 0:04:04]} 16. Nxd4 {
[%emt 0:02:05]} Nc5 {[%emt 0:06:53]} 17. b4 {[%emt 0:02:05]} Ne4 {[%emt 0:00:
00]} 18. Bf3 {[%emt 0:01:50]} Bb7 {[%emt 0:04:41]} 19. Rfe1 {[%emt 0:06:38]} e5
{[%emt 0:11:41]} 20. Bxe4 {[%emt 0:01:51]} Bxe4 {[%emt 0:00:28]} 21. Rxe4 {
[%emt 0:00:10]} exd4 {[%emt 0:00:16]} 22. Rdxd4 {[%emt 0:01:02]} Rfd8 {[%emt 0:
00:00]} 23. Kf1 f5 {[%emt 0:00:30]} 24. Rxd8+ {[%emt 0:01:00]} Rxd8 {[%emt 0:
00:00]} 25. Re1 {[%emt 0:00:30]} Rc8 {[%emt 0:00:30]} 26. Rc1 {[%emt 0:00:30]}
b5 {[%emt 0:00:30]} 27. c5 {[%emt 0:00:30]} Kf7 {[%emt 0:00:30]} 28. Rd1 {
[%emt 0:09:46]} Ke6 {[%emt 0:11:57]} 29. Rd6+ {[%emt 0:03:38]} Ke7 {[%emt 0:00:
00]} 30. Ke2 Rd8 {[%emt 0:00:30]} 31. Rxd8 {[%emt 0:01:00]} Kxd8 {[%emt 0:00:
00]} 32. Kd3 {[%emt 0:00:30]} Kd7 {[%emt 0:00:30]} 33. Kd4 {[%emt 0:00:30]} Ke6
{[%emt 0:00:30]} 34. f3 {[%emt 0:00:30]} a6 {[%emt 0:00:30]} 35. Ke3 {[%emt 0:
00:00]} Kd5 {[%emt 0:00:30]} 36. Kf4 {[%emt 0:00:30]} h6 {[%emt 0:00:30]} 37.
g4 {[%emt 0:00:30]} Ke6 {[%emt 0:00:30]} 38. gxf5+ {[%emt 0:00:30]} gxf5 {
[%emt 0:14:39]} 39. c6 {[%emt 0:09:00]} Kd6 {[%emt 0:00:29]} 40. Kxf5 {[%emt 0:
00:00]} Kxc6 {[%emt 0:01:03]} 41. Ke6 {[%emt 0:30:09]} Kc7 {[%emt 0:31:31]} 42.
Ke7 {[%emt 0:00:26]} Kc6 {[%emt 0:02:14]} 43. f4 {[%emt 0:00:33]} Kd5 {[%emt 0:
00:00]} 44. f5 {[%emt 0:00:11]} Ke5 {[%emt 0:02:30]} 45. f6 {[%emt 0:00:07]}
1-0

[Event "44th Chess Olympiad Women 2022"]
[Site "Chennai"]
[Date "2022.08.03"]
[Round "6.65"]
[White "Pinder, Trinity"]
[Black "Ibtihal Mohammed"]
[Result "0-1"]
[WhiteElo "1183"]
[BlackElo "1445"]
[Annotator "NA RC"]
[PlyCount "120"]
[EventDate "2022.??.??"]
[TimeControl "60"]

1. d4 {[%emt 0:00:04]} c5 {[%emt 0:00:07]} 2. e3 {[%emt 0:02:03]} cxd4 {
[%emt 0:00:07]} 3. exd4 {[%emt 0:00:15]} Nf6 {[%emt 0:00:06]} 4. Nf3 {[%emt 0:
00:00]} g6 {[%emt 0:00:24]} 5. Be2 {[%emt 0:00:36]} Bg7 {[%emt 0:00:14]} 6. O-O
{[%emt 0:00:18]} O-O {[%emt 0:00:07]} 7. c4 {[%emt 0:02:45]} d5 {[%emt 0:00:31]
} 8. h3 {[%emt 0:01:16]} dxc4 {[%emt 0:00:21]} 9. Bxc4 {[%emt 0:00:27]} Nbd7 {
[%emt 0:00:54]} 10. Be3 {[%emt 0:00:37]} Nb6 {[%emt 0:00:27]} 11. b3 {[%emt 0:
00:00]} Nxc4 {[%emt 0:00:09]} 12. bxc4 {[%emt 0:00:15]} Bf5 {[%emt 0:00:34]}
13. Nc3 {[%emt 0:01:48]} Rc8 {[%emt 0:01:29]} 14. c5 {[%emt 0:01:06]} b6 {
[%emt 0:00:18]} 15. Rc1 {[%emt 0:09:05]} bxc5 {[%emt 0:00:56]} 16. dxc5 {
[%emt 0:03:09]} Qa5 {[%emt 0:02:08]} 17. Qa4 {[%emt 0:04:57]} Qxa4 {[%emt 0:00:
00]} 18. Nxa4 {[%emt 0:00:29]} Rfd8 {[%emt 0:00:46]} 19. c6 {[%emt 0:02:27]}
Be4 {[%emt 0:02:11]} 20. Nd4 {[%emt 0:03:20]} Ne8 {[%emt 0:03:57]} 21. Nb5 {
[%emt 0:09:10]} Rxc6 {[%emt 0:21:40]} 22. Nxa7 {[%emt 0:00:21]} Rxc1 {[%emt 0:
00:00]} 23. Rxc1 {[%emt 0:00:46]} Bd4 {[%emt 0:01:04]} 24. Bxd4 {[%emt 0:00:39]
} Rxd4 {[%emt 0:00:17]} 25. Nc5 {[%emt 0:03:49]} Bd5 {[%emt 0:01:52]} 26. Nb3 {
[%emt 0:04:11]} Ra4 {[%emt 0:00:27]} 27. Nc8 {[%emt 0:02:36]} Re4 {[%emt 0:00:
00]} 28. Nc5 {[%emt 0:02:02]} Re5 {[%emt 0:04:09]} 29. f4 {[%emt 0:01:02]} Re2
{[%emt 0:06:48]} 30. Kf1 {[%emt 0:00:49]} Rd2 {[%emt 0:00:23]} 31. Nxe7+ {
[%emt 0:00:24]} Kg7 {[%emt 0:00:14]} 32. Nxd5 {[%emt 0:00:10]} Rxd5 {[%emt 0:
00:00]} 33. a4 {[%emt 0:00:41]} Nc7 {[%emt 0:03:49]} 34. Ke2 {[%emt 0:02:13]}
Ne6 {[%emt 0:09:51]} 35. Nxe6+ {[%emt 0:02:34]} fxe6 {[%emt 0:00:07]} 36. Rd1 {
[%emt 0:02:03]} Ra5 {[%emt 0:01:06]} 37. Rd4 {[%emt 0:00:20]} Kf6 {[%emt 0:00:
00]} 38. Kf3 {[%emt 0:01:18]} h6 {[%emt 0:00:19]} 39. g4 {[%emt 0:00:59]} g5 {
[%emt 0:00:14]} 40. fxg5+ {[%emt 0:00:49]} hxg5 {[%emt 0:00:09]} 41. Re4 {
[%emt 0:31:18]} e5 {[%emt 0:31:56]} 42. Ke3 {[%emt 0:00:11]} Ke6 {[%emt 0:00:
00]} 43. Kd3 {[%emt 0:01:20]} Kd5 {[%emt 0:01:22]} 44. Rb4 {[%emt 0:00:46]} Kd6
{[%emt 0:04:28]} 45. Kc3 {[%emt 0:02:56]} Rc5+ {[%emt 0:01:34]} 46. Kb3 {
[%emt 0:02:16]} Kd5 {[%emt 0:04:58]} 47. Rb5 {[%emt 0:01:23]} Rxb5+ {[%emt 0:
00:00]} 48. axb5 {[%emt 0:02:32]} Kc5 {[%emt 0:00:07]} 49. Kc3 {[%emt 0:00:18]}
Kxb5 {[%emt 0:00:42]} 50. Kd3 {[%emt 0:00:42]} Kc5 {[%emt 0:00:02]} 51. Ke4 {
[%emt 0:01:03]} Kd6 {[%emt 0:00:01]} 52. Kf5 {[%emt 0:00:33]} Kd5 {[%emt 0:00:
00]} 53. Kxg5 {[%emt 0:00:23]} e4 {[%emt 0:00:17]} 54. Kf4 {[%emt 0:00:34]} Kd4
{[%emt 0:00:06]} 55. g5 {[%emt 0:00:05]} e3 {[%emt 0:00:08]} 56. Kf3 {[%emt 0:
00:00]} Kd3 {[%emt 0:00:01]} 57. g6 {[%emt 0:00:42]} e2 {[%emt 0:00:05]} 58. g7
{[%emt 0:00:38]} e1=Q {[%emt 0:00:14]} 59. Kg2 {[%emt 0:01:13]} Qe4+ {[%emt 0:
00:00]} 60. Kf1 {[%emt 0:01:40]} Qf3+ {[%emt 0:00:28]} 0-1